[Event "Early-Titled-Tuesday-Blitz-January-30-2024"]
[Site "Chess.com"]
[Date "2024.01.30"]
[Round "2"]
[White "deribas12345"]
[Black "Abund"]
[Result "1-0"]
[WhiteElo "2497"]
[BlackElo "2755"]
[TimeControl "180+1"]
[EndTime "8:18:43 PST"]
[Termination "deribas12345 won by resignation"]

1. d4 {[%clk 0:03:00.9]} 1... d5 {[%clk 0:02:59]} 2. c4 {[%clk 0:03:00.6]} 2...
e6 {[%clk 0:02:59.6]} 3. Nc3 {[%clk 0:03:00.8]} 3... Be7 {[%clk 0:02:57.2]} 4.
Nf3 {[%clk 0:02:59.8]} 4... Nf6 {[%clk 0:02:57]} 5. cxd5 {[%clk 0:02:59.1]} 5...
exd5 {[%clk 0:02:57.2]} 6. Bf4 {[%clk 0:02:59.4]} 6... c6 {[%clk 0:02:55.3]} 7.
e3 {[%clk 0:02:59.7]} 7... Bf5 {[%clk 0:02:55.5]} 8. Bd3 {[%clk 0:02:59.2]} 8...
Bxd3 {[%clk 0:02:55.7]} 9. Qxd3 {[%clk 0:03:00.1]} 9... Nbd7 {[%clk 0:02:56.4]}
10. O-O {[%clk 0:03:00.4]} 10... O-O {[%clk 0:02:56.7]} 11. a3 {[%clk
0:02:58.4]} 11... a5 {[%clk 0:02:56.4]} 12. Rac1 {[%clk 0:02:57.1]} 12... Re8
{[%clk 0:02:55]} 13. h3 {[%clk 0:02:56.7]} 13... Bf8 {[%clk 0:02:49.6]} 14. Ne5
{[%clk 0:02:52.4]} 14... Nxe5 {[%clk 0:02:42.1]} 15. Bxe5 {[%clk 0:02:52.2]}
15... Ne4 {[%clk 0:02:35.5]} 16. Nxe4 {[%clk 0:02:50.1]} 16... dxe4 {[%clk
0:02:36.4]} 17. Qb3 {[%clk 0:02:38.9]} 17... Qd7 {[%clk 0:02:34.6]} 18. Bg3
{[%clk 0:02:37.2]} 18... a4 {[%clk 0:02:31.8]} 19. Qc4 {[%clk 0:02:33.5]} 19...
Ra5 {[%clk 0:02:31.6]} 20. Rc2 {[%clk 0:02:28]} 20... Rea8 {[%clk 0:02:27.5]}
21. Rd1 {[%clk 0:02:21.5]} 21... Rd5 {[%clk 0:02:27.3]} 22. Qe2 {[%clk
0:02:16.5]} 22... g6 {[%clk 0:02:25.5]} 23. Be5 {[%clk 0:02:14.4]} 23... Qe6
{[%clk 0:02:18.7]} 24. Rdc1 {[%clk 0:02:12.6]} 24... Raa5 {[%clk 0:02:15.3]} 25.
Rc4 {[%clk 0:02:09.1]} 25... f6 {[%clk 0:02:11.6]} 26. Bg3 {[%clk 0:02:08.4]}
26... h5 {[%clk 0:02:11.9]} 27. Qc2 {[%clk 0:02:07.8]} 27... Kf7 {[%clk
0:02:11.5]} 28. Rxa4 {[%clk 0:02:05.8]} 28... Rab5 {[%clk 0:02:02.2]} 29. Ra8
{[%clk 0:02:01]} 29... Rg5 {[%clk 0:01:57.9]} 30. h4 {[%clk 0:01:47.1]} 30...
Rgd5 {[%clk 0:01:52.1]} 31. b4 {[%clk 0:01:43.8]} 31... Be7 {[%clk 0:01:41.9]}
32. Qe2 {[%clk 0:01:32.4]} 32... Rf5 {[%clk 0:01:39.3]} 33. Bf4 {[%clk
0:01:27.3]} 33... Kg7 {[%clk 0:01:35.7]} 34. Bg3 {[%clk 0:01:25.2]} 34... Rfd5
{[%clk 0:01:35.4]} 35. Rb1 {[%clk 0:01:15.9]} 35... Rf5 {[%clk 0:01:34.2]} 36.
Re8 {[%clk 0:01:12.7]} 36... Kf7 {[%clk 0:01:31.7]} 37. Rb8 {[%clk 0:01:10.2]}
37... Kg7 {[%clk 0:01:30.1]} 38. Qd2 {[%clk 0:01:08.3]} 38... Qd7 {[%clk
0:01:22.2]} 39. Qc2 {[%clk 0:00:53.8]} 39... Qe6 {[%clk 0:01:16]} 40. a4 {[%clk
0:00:52.7]} 40... Rb6 {[%clk 0:01:14.3]} 41. Bc7 {[%clk 0:00:46.8]} 41... Rxb4
{[%clk 0:01:11.7]} 42. Rxb4 {[%clk 0:00:46]} 42... Bxb4 {[%clk 0:01:12]} 43.
Rxb7 {[%clk 0:00:46.7]} 43... Kh6 {[%clk 0:01:03.1]} 44. Rxb4 {[%clk 0:00:43]}
44... Rd5 {[%clk 0:00:59.3]} 45. Bf4+ {[%clk 0:00:40.6]} 45... g5 {[%clk
0:00:59.6]} 46. hxg5+ {[%clk 0:00:41]} 46... fxg5 {[%clk 0:00:59.4]} 47. Be5
{[%clk 0:00:41.3]} 47... c5 {[%clk 0:00:54.7]} 48. Rc4 {[%clk 0:00:34.8]} 48...
cxd4 {[%clk 0:00:51.8]} 49. Rc6 {[%clk 0:00:32.9]} 49... Rxe5 {[%clk 0:00:49.7]}
50. Rxe6+ {[%clk 0:00:31.8]} 50... Rxe6 {[%clk 0:00:50.6]} 51. exd4 {[%clk
0:00:32.3]} 51... Rc6 {[%clk 0:00:51.2]} 52. Qxc6+ {[%clk 0:00:31.6]} 1-0

[Event "Early-Titled-Tuesday-Blitz-January-30-2024"]
[Site "Chess.com"]
[Date "2024.01.30"]
[Round "2"]
[White "Maxfan2008"]
[Black "Gabrielian_Artur"]
[Result "1-0"]
[WhiteElo "2493"]
[BlackElo "2754"]
[TimeControl "180+1"]
[EndTime "8:18:43 PST"]
[Termination "Maxfan2008 won by checkmate"]

1. c4 {[%clk 0:03:00.9]} 1... Nf6 {[%clk 0:02:59.5]} 2. g3 {[%clk 0:02:59.7]}
2... g6 {[%clk 0:02:59.7]} 3. Bg2 {[%clk 0:02:58.8]} 3... Bg7 {[%clk 0:03:00]}
4. Nc3 {[%clk 0:02:58.3]} 4... O-O {[%clk 0:02:59.4]} 5. Nf3 {[%clk 0:02:57.9]}
5... d6 {[%clk 0:02:59.3]} 6. O-O {[%clk 0:02:56.5]} 6... e5 {[%clk 0:02:59.3]}
7. d4 {[%clk 0:02:54.9]} 7... Nc6 {[%clk 0:02:57.7]} 8. d5 {[%clk 0:02:53.8]}
8... Nb8 {[%clk 0:02:56.7]} 9. Nd2 {[%clk 0:02:52.9]} 9... a5 {[%clk 0:02:53.7]}
10. e4 {[%clk 0:02:52]} 10... Na6 {[%clk 0:02:53]} 11. b3 {[%clk 0:02:50.7]}
11... Nc5 {[%clk 0:02:52]} 12. Qc2 {[%clk 0:02:48.5]} 12... Nh5 {[%clk
0:02:50.5]} 13. a3 {[%clk 0:02:45.2]} 13... f5 {[%clk 0:02:48.8]} 14. Rb1 {[%clk
0:02:39.8]} 14... Nf6 {[%clk 0:02:30]} 15. b4 {[%clk 0:02:38.3]} 15... axb4
{[%clk 0:02:29]} 16. axb4 {[%clk 0:02:36.7]} 16... Ncxe4 {[%clk 0:02:29]} 17.
Ndxe4 {[%clk 0:02:36]} 17... fxe4 {[%clk 0:02:28.2]} 18. Nxe4 {[%clk 0:02:34.4]}
18... Bf5 {[%clk 0:02:27.9]} 19. Bg5 {[%clk 0:02:32.8]} 19... Qd7 {[%clk
0:02:18.4]} 20. Bxf6 {[%clk 0:02:31.2]} 20... Bxf6 {[%clk 0:02:17.3]} 21. c5
{[%clk 0:02:29.7]} 21... h5 {[%clk 0:02:00.3]} 22. Ra1 {[%clk 0:02:25.8]} 22...
Rxa1 {[%clk 0:01:58.3]} 23. Rxa1 {[%clk 0:02:24.8]} 23... h4 {[%clk 0:01:58.8]}
24. c6 {[%clk 0:02:17.2]} 24... bxc6 {[%clk 0:01:51.6]} 25. dxc6 {[%clk
0:02:18.1]} 25... Qf7 {[%clk 0:01:41.2]} 26. Nxf6+ {[%clk 0:02:14.9]} 26... Qxf6
{[%clk 0:01:40.9]} 27. Qe2 {[%clk 0:02:14.3]} 27... h3 {[%clk 0:01:39.6]} 28.
Bd5+ {[%clk 0:02:12.5]} 28... Kg7 {[%clk 0:01:37.9]} 29. Ra7 {[%clk 0:02:09.1]}
29... Qe7 {[%clk 0:01:15.7]} 30. b5 {[%clk 0:02:05.9]} 30... Rb8 {[%clk
0:01:13.8]} 31. f4 {[%clk 0:01:54.6]} 31... Kh6 {[%clk 0:00:36.5]} 32. g4 {[%clk
0:01:38.4]} 32... Bc8 {[%clk 0:00:35.6]} 33. g5+ {[%clk 0:01:35.9]} 33... Kg7
{[%clk 0:00:35.4]} 34. Kf2 {[%clk 0:01:20.2]} 34... Kf8 {[%clk 0:00:32.9]} 35.
b6 {[%clk 0:01:07.8]} 35... Rxb6 {[%clk 0:00:29.9]} 36. Ra8 {[%clk 0:01:07.8]}
36... Qe8 {[%clk 0:00:23.3]} 37. fxe5 {[%clk 0:01:08.4]} 37... Kg7 {[%clk
0:00:12.5]} 38. exd6 {[%clk 0:00:59.3]} 38... Qf8+ {[%clk 0:00:12.3]} 39. Qf3
{[%clk 0:00:57.9]} 39... Rb2+ {[%clk 0:00:11.5]} 40. Kf1 {[%clk 0:00:56.8]}
40... Rb1+ {[%clk 0:00:10.1]} 41. Ke2 {[%clk 0:00:54.8]} 41... Rb2+ {[%clk
0:00:07.7]} 42. Kd1 {[%clk 0:00:52]} 42... Qxd6 {[%clk 0:00:03.4]} 43. Qf7+
{[%clk 0:00:49.9]} 43... Kh8 {[%clk 0:00:03.3]} 44. Qg8# {[%clk 0:00:50.8]} 1-0

[Event "Early-Titled-Tuesday-Blitz-January-30-2024"]
[Site "Chess.com"]
[Date "2024.01.30"]
[Round "2"]
[White "Alen_Yeremyann"]
[Black "EsmeraldasAnderson03"]
[Result "1-0"]
[WhiteElo "2746"]
[BlackElo "2408"]
[TimeControl "180+1"]
[EndTime "8:18:45 PST"]
[Termination "Alen_Yeremyann won by resignation"]

1. d4 {[%clk 0:02:58.9]} 1... d5 {[%clk 0:02:59.5]} 2. c4 {[%clk 0:02:59.3]}
2... dxc4 {[%clk 0:03:00.4]} 3. e3 {[%clk 0:02:58.5]} 3... Nf6 {[%clk
0:03:01.1]} 4. Bxc4 {[%clk 0:02:58.8]} 4... e6 {[%clk 0:03:01.6]} 5. Nf3 {[%clk
0:02:58.7]} 5... a6 {[%clk 0:03:02.5]} 6. O-O {[%clk 0:02:59.3]} 6... c5 {[%clk
0:03:02.9]} 7. Bd3 {[%clk 0:03:00]} 7... b5 {[%clk 0:03:02.8]} 8. a4 {[%clk
0:02:59.1]} 8... b4 {[%clk 0:03:03]} 9. Nbd2 {[%clk 0:02:58.3]} 9... Bb7 {[%clk
0:03:03.6]} 10. Nc4 {[%clk 0:02:58.9]} 10... Nbd7 {[%clk 0:03:04.3]} 11. b3
{[%clk 0:02:59.4]} 11... Be7 {[%clk 0:03:04.6]} 12. Bb2 {[%clk 0:03:00.1]} 12...
O-O {[%clk 0:03:05.3]} 13. Qe2 {[%clk 0:03:00.7]} 13... Rc8 {[%clk 0:03:05.9]}
14. Rfd1 {[%clk 0:02:59.7]} 14... Qc7 {[%clk 0:03:06.4]} 15. Rac1 {[%clk
0:02:59.9]} 15... Qb8 {[%clk 0:03:06.7]} 16. Bb1 {[%clk 0:02:57.4]} 16... Qa8
{[%clk 0:03:04.9]} 17. dxc5 {[%clk 0:02:53.4]} 17... Nxc5 {[%clk 0:03:04.4]} 18.
Nb6 {[%clk 0:02:53.7]} 18... Bxf3 {[%clk 0:03:02.4]} 19. gxf3 {[%clk 0:02:51.1]}
19... Qb7 {[%clk 0:02:58.9]} 20. Nxc8 {[%clk 0:02:51.5]} 20... Rxc8 {[%clk
0:02:59.6]} 21. Bxf6 {[%clk 0:02:49.7]} 21... Bxf6 {[%clk 0:02:58.5]} 22. Be4
{[%clk 0:02:32.1]} 22... Qb8 {[%clk 0:02:53.8]} 23. Qc4 {[%clk 0:02:17.4]} 23...
Bc3 {[%clk 0:02:52.1]} 24. Kg2 {[%clk 0:02:10.9]} 24... g6 {[%clk 0:02:48.3]}
25. Bc2 {[%clk 0:02:05.4]} 25... a5 {[%clk 0:02:46.1]} 26. Qf4 {[%clk
0:02:02.2]} 26... Be5 {[%clk 0:02:42.4]} 27. Qg4 {[%clk 0:02:00.7]} 27... h5
{[%clk 0:02:38.5]} 28. Qg5 {[%clk 0:01:59.8]} 28... Kg7 {[%clk 0:02:37.9]} 29.
f4 {[%clk 0:01:35.7]} 29... Bb2 {[%clk 0:02:15.3]} 30. Rb1 {[%clk 0:00:32.9]}
30... Bf6 {[%clk 0:02:11.2]} 31. Qg3 {[%clk 0:00:33.3]} 31... Nxa4 {[%clk
0:01:56.5]} 32. Bxg6 {[%clk 0:00:33.3]} 32... Nc3 {[%clk 0:01:55.1]} 33. Rd7
{[%clk 0:00:29.7]} 33... Qa8+ {[%clk 0:00:23.7]} 34. Be4+ {[%clk 0:00:28.4]}
34... Kf8 {[%clk 0:00:17.8]} 35. Bxa8 {[%clk 0:00:22]} 35... Rxa8 {[%clk
0:00:18.3]} 36. Qf3 {[%clk 0:00:22.4]} 36... Rb8 {[%clk 0:00:15.5]} 37. Qxh5
{[%clk 0:00:22.7]} 1-0

[Event "Early-Titled-Tuesday-Blitz-January-30-2024"]
[Site "Chess.com"]
[Date "2024.01.30"]
[Round "2"]
[White "AwareIdea"]
[Black "mertfelin"]
[Result "1-0"]
[WhiteElo "2520"]
[BlackElo "2255"]
[TimeControl "180+1"]
[EndTime "8:18:46 PST"]
[Termination "AwareIdea won by resignation"]

1. d4 {[%clk 0:03:00.9]} 1... d5 {[%clk 0:02:59.8]} 2. c4 {[%clk 0:03:00.5]}
2... e6 {[%clk 0:03:00.3]} 3. Nc3 {[%clk 0:02:58.8]} 3... Nf6 {[%clk 0:03:00.8]}
4. Nf3 {[%clk 0:02:58.9]} 4... Be7 {[%clk 0:03:00.3]} 5. Bf4 {[%clk 0:02:59]}
5... O-O {[%clk 0:02:57.8]} 6. e3 {[%clk 0:02:58.7]} 6... Nbd7 {[%clk
0:02:58.1]} 7. Rc1 {[%clk 0:02:57.3]} 7... Nh5 {[%clk 0:02:57.4]} 8. Be5 {[%clk
0:02:56.9]} 8... f6 {[%clk 0:02:57]} 9. Bg3 {[%clk 0:02:56.6]} 9... g6 {[%clk
0:02:46.1]} 10. cxd5 {[%clk 0:02:52.7]} 10... Nxg3 {[%clk 0:02:36.2]} 11. hxg3
{[%clk 0:02:52.3]} 11... exd5 {[%clk 0:02:36.7]} 12. Nxd5 {[%clk 0:02:52.5]}
12... c6 {[%clk 0:02:37.3]} 13. Nxe7+ {[%clk 0:02:52.3]} 13... Qxe7 {[%clk
0:02:37.5]} 14. Bc4+ {[%clk 0:02:51.2]} 14... Kg7 {[%clk 0:02:37.7]} 15. Qd2
{[%clk 0:02:49.8]} 15... Nb6 {[%clk 0:02:36]} 16. Be2 {[%clk 0:02:42.9]} 16...
Be6 {[%clk 0:02:35.8]} 17. e4 {[%clk 0:02:41.5]} 17... Rad8 {[%clk 0:02:32.3]}
18. b3 {[%clk 0:02:37.9]} 18... Rfe8 {[%clk 0:02:26.4]} 19. Kf1 {[%clk
0:02:36.4]} 19... Bg8 {[%clk 0:02:21.3]} 20. e5 {[%clk 0:02:30.1]} 20... fxe5
{[%clk 0:02:10.9]} 21. Qh6+ {[%clk 0:02:27.9]} 21... Kh8 {[%clk 0:02:11.7]} 22.
dxe5 {[%clk 0:02:28.8]} 22... Qg7 {[%clk 0:02:06.7]} 23. Qg5 {[%clk 0:02:25]}
23... Bd5 {[%clk 0:02:05.6]} 24. Re1 {[%clk 0:02:22.4]} 24... Rf8 {[%clk
0:02:03.4]} 25. Bd3 {[%clk 0:02:17.5]} 25... Kg8 {[%clk 0:01:12.4]} 26. Re3
{[%clk 0:02:05.8]} 26... Rde8 {[%clk 0:01:10.9]} 27. Rh4 {[%clk 0:01:54.5]}
27... Nd7 {[%clk 0:01:05.5]} 28. Be4 {[%clk 0:01:11.8]} 28... Bxe4 {[%clk
0:00:56.1]} 29. Rhxe4 {[%clk 0:01:12.7]} 29... Rf5 {[%clk 0:00:52]} 30. Qg4
{[%clk 0:01:05]} 30... Nc5 {[%clk 0:00:48.6]} 31. Rd4 {[%clk 0:01:00.7]} 31...
Qf7 {[%clk 0:00:37.8]} 32. Kg1 {[%clk 0:00:58.1]} 32... Ne6 {[%clk 0:00:35.8]}
33. Rd1 {[%clk 0:00:50.9]} 33... Rf8 {[%clk 0:00:25.7]} 34. Qc4 {[%clk
0:00:49.2]} 34... Kh8 {[%clk 0:00:22]} 35. Rd6 {[%clk 0:00:48.2]} 35... Ng5
{[%clk 0:00:06.6]} 36. Nxg5 {[%clk 0:00:38.9]} 36... Rxg5 {[%clk 0:00:05.1]} 37.
Qxf7 {[%clk 0:00:34.8]} 37... Rxf7 {[%clk 0:00:05.4]} 38. e6 {[%clk 0:00:33.9]}
1-0

[Event "Early-Titled-Tuesday-Blitz-January-30-2024"]
[Site "Chess.com"]
[Date "2024.01.30"]
[Round "2"]
[White "UK_23"]
[Black "Alexchess1984"]
[Result "0-1"]
[WhiteElo "2399"]
[BlackElo "2743"]
[TimeControl "180+1"]
[EndTime "8:18:47 PST"]
[Termination "Alexchess1984 won by resignation"]

1. e4 {[%clk 0:03:00.9]} 1... c5 {[%clk 0:02:59.5]} 2. Nf3 {[%clk 0:03:00.9]}
2... Nc6 {[%clk 0:03:00]} 3. Bb5 {[%clk 0:03:00.6]} 3... Nf6 {[%clk 0:02:55.6]}
4. Nc3 {[%clk 0:02:58.4]} 4... Qc7 {[%clk 0:02:54.7]} 5. O-O {[%clk 0:02:56]}
5... Nd4 {[%clk 0:02:54.2]} 6. Re1 {[%clk 0:02:36.3]} 6... a6 {[%clk 0:02:53.2]}
7. Bf1 {[%clk 0:02:28.9]} 7... Ng4 {[%clk 0:02:51.5]} 8. g3 {[%clk 0:02:21]}
8... Nxf3+ {[%clk 0:02:50.9]} 9. Qxf3 {[%clk 0:02:20.8]} 9... Ne5 {[%clk
0:02:51.4]} 10. Qg2 {[%clk 0:02:09.5]} 10... e6 {[%clk 0:02:49.1]} 11. f4 {[%clk
0:02:08.5]} 11... Nc6 {[%clk 0:02:48.7]} 12. d3 {[%clk 0:02:00.2]} 12... Be7
{[%clk 0:02:47.5]} 13. Be3 {[%clk 0:01:59]} 13... d6 {[%clk 0:02:43.7]} 14. Ne2
{[%clk 0:01:56.6]} 14... b5 {[%clk 0:02:38.1]} 15. c3 {[%clk 0:01:56.4]} 15...
Bb7 {[%clk 0:02:35.3]} 16. Qf2 {[%clk 0:01:55.8]} 16... O-O {[%clk 0:02:33.5]}
17. Bg2 {[%clk 0:01:55.7]} 17... Rad8 {[%clk 0:02:26.4]} 18. Rad1 {[%clk
0:01:44.6]} 18... b4 {[%clk 0:02:09.3]} 19. h3 {[%clk 0:01:39.1]} 19... a5
{[%clk 0:02:08.4]} 20. g4 {[%clk 0:01:39]} 20... bxc3 {[%clk 0:02:03.9]} 21.
bxc3 {[%clk 0:01:39.1]} 21... Ba6 {[%clk 0:02:04.5]} 22. Ng3 {[%clk 0:01:35.1]}
22... a4 {[%clk 0:01:48.7]} 23. g5 {[%clk 0:01:30.4]} 23... Qa5 {[%clk
0:01:38.1]} 24. Qc2 {[%clk 0:01:10.5]} 24... a3 {[%clk 0:01:22]} 25. Rb1 {[%clk
0:01:08]} 25... Rb8 {[%clk 0:01:18.9]} 26. Nh5 {[%clk 0:01:01.5]} 26... Bb5
{[%clk 0:01:01.4]} 27. h4 {[%clk 0:00:51.9]} 27... Qa6 {[%clk 0:01:00.9]} 28.
Red1 {[%clk 0:00:48.7]} 28... Ba4 {[%clk 0:01:00.3]} 29. Qe2 {[%clk 0:00:44.4]}
29... Bxd1 {[%clk 0:00:59.6]} 30. Rxd1 {[%clk 0:00:45.3]} 30... Rb2 {[%clk
0:00:58.6]} 31. Qg4 {[%clk 0:00:45.5]} 31... Qc8 {[%clk 0:00:50.9]} 32. Nf6+
{[%clk 0:00:43.3]} 32... Kh8 {[%clk 0:00:47.6]} 33. Nxh7 {[%clk 0:00:17.5]}
33... Kxh7 {[%clk 0:00:44]} 34. Qh5+ {[%clk 0:00:18.1]} 34... Kg8 {[%clk
0:00:43.5]} 35. f5 {[%clk 0:00:17.6]} 35... exf5 {[%clk 0:00:41.2]} 36. Bh3
{[%clk 0:00:17.4]} 36... g6 {[%clk 0:00:39.2]} 37. Qh6 {[%clk 0:00:17.6]} 37...
Re8 {[%clk 0:00:37.6]} 38. exf5 {[%clk 0:00:13.9]} 38... Bf8 {[%clk 0:00:36.9]}
39. fxg6 {[%clk 0:00:14.3]} 39... Bxh6 {[%clk 0:00:35.8]} 40. Bxc8 {[%clk
0:00:14.6]} 40... Rxc8 {[%clk 0:00:36.7]} 41. gxf7+ {[%clk 0:00:13.8]} 41...
Kxf7 {[%clk 0:00:37.6]} 42. gxh6 {[%clk 0:00:14.2]} 42... Ne5 {[%clk 0:00:37.5]}
0-1

[Event "Early-Titled-Tuesday-Blitz-January-30-2024"]
[Site "Chess.com"]
[Date "2024.01.30"]
[Round "2"]
[White "AsselLesbekova"]
[Black "BigAl"]
[Result "0-1"]
[WhiteElo "2302"]
[BlackElo "2538"]
[TimeControl "180+1"]
[EndTime "8:18:48 PST"]
[Termination "BigAl won by checkmate"]

1. e4 {[%clk 0:03:00.1]} 1... c6 {[%clk 0:02:57.4]} 2. d4 {[%clk 0:02:58.5]}
2... d5 {[%clk 0:02:57.7]} 3. e5 {[%clk 0:02:59.2]} 3... Bf5 {[%clk 0:02:57]} 4.
Nd2 {[%clk 0:02:59.4]} 4... c5 {[%clk 0:02:52]} 5. dxc5 {[%clk 0:02:57.7]} 5...
Nc6 {[%clk 0:02:51.7]} 6. Ngf3 {[%clk 0:02:55.7]} 6... e6 {[%clk 0:02:51]} 7.
Nb3 {[%clk 0:02:47.4]} 7... Bg4 {[%clk 0:02:49.5]} 8. Bf4 {[%clk 0:02:44.6]}
8... Nge7 {[%clk 0:02:49.1]} 9. Bb5 {[%clk 0:02:38.8]} 9... Ng6 {[%clk
0:02:41.9]} 10. Bxc6+ {[%clk 0:02:38.8]} 10... bxc6 {[%clk 0:02:41.8]} 11. Bg3
{[%clk 0:02:39.4]} 11... h5 {[%clk 0:02:16.9]} 12. h3 {[%clk 0:02:37.7]} 12...
h4 {[%clk 0:02:17.3]} 13. hxg4 {[%clk 0:02:30.3]} 13... hxg3 {[%clk 0:02:17]}
14. Rxh8 {[%clk 0:02:30.3]} 14... gxf2+ {[%clk 0:02:16.9]} 15. Kxf2 {[%clk
0:02:31.2]} 15... Nxh8 {[%clk 0:02:17.4]} 16. Qh1 {[%clk 0:02:18.7]} 16... Ng6
{[%clk 0:02:17.5]} 17. Qh7 {[%clk 0:02:18]} 17... Qc7 {[%clk 0:02:03.1]} 18. Nh4
{[%clk 0:02:10.7]} 18... Nxe5 {[%clk 0:02:00.5]} 19. Nf3 {[%clk 0:02:03.6]}
19... Nxg4+ {[%clk 0:01:57.9]} 20. Kg1 {[%clk 0:01:59.5]} 20... Qf4 {[%clk
0:01:34]} 21. Rf1 {[%clk 0:01:40.7]} 21... Qe3+ {[%clk 0:01:33.8]} 22. Kh1
{[%clk 0:01:40.5]} 22... O-O-O {[%clk 0:01:26.9]} 23. Qh4 {[%clk 0:01:34.9]}
23... Nh6 {[%clk 0:01:18.4]} 24. Ng5 {[%clk 0:01:30]} 24... Be7 {[%clk
0:01:09.2]} 25. Qa4 {[%clk 0:01:21.7]} 25... Kd7 {[%clk 0:00:56.9]} 26. Qxa7+
{[%clk 0:01:12.8]} 26... Ke8 {[%clk 0:00:57.2]} 27. Nh3 {[%clk 0:01:04.8]} 27...
Nf5 {[%clk 0:00:53.5]} 28. Rf3 {[%clk 0:00:57]} 28... Qe1+ {[%clk 0:00:50.2]}
29. Kh2 {[%clk 0:00:56.4]} 29... Bf6 {[%clk 0:00:48.5]} 30. Nf4 {[%clk
0:00:29.5]} 30... Be5 {[%clk 0:00:42]} 31. Na5 {[%clk 0:00:28.1]} 31... Bxf4+
{[%clk 0:00:40.8]} 32. Rxf4 {[%clk 0:00:27.8]} 32... Qg3+ {[%clk 0:00:41.4]} 33.
Kg1 {[%clk 0:00:23.5]} 33... Qxf4 {[%clk 0:00:41.8]} 34. Nxc6 {[%clk 0:00:23.3]}
34... Qe3+ {[%clk 0:00:36.4]} 35. Kh2 {[%clk 0:00:21]} 35... Qg3+ {[%clk
0:00:36.1]} 36. Kg1 {[%clk 0:00:20.9]} 36... Rc8 {[%clk 0:00:33.8]} 37. Nb4
{[%clk 0:00:06.8]} 37... Ne3 {[%clk 0:00:29.8]} 38. Qa4+ {[%clk 0:00:06.2]}
38... Kf8 {[%clk 0:00:30.2]} 39. Qd7 {[%clk 0:00:06.4]} 39... Qxg2# {[%clk
0:00:29.9]} 0-1

[Event "Early-Titled-Tuesday-Blitz-January-30-2024"]
[Site "Chess.com"]
[Date "2024.01.30"]
[Round "2"]
[White "Elsa167"]
[Black "dcann0n88"]
[Result "1-0"]
[WhiteElo "2843"]
[BlackElo "2443"]
[TimeControl "180+1"]
[EndTime "8:18:49 PST"]
[Termination "Elsa167 won by resignation"]

1. d4 {[%clk 0:03:00.9]} 1... Nf6 {[%clk 0:02:56]} 2. c4 {[%clk 0:03:00.9]} 2...
c5 {[%clk 0:02:55.7]} 3. d5 {[%clk 0:03:00.4]} 3... e5 {[%clk 0:02:55]} 4. Nc3
{[%clk 0:03:00.5]} 4... d6 {[%clk 0:02:54.5]} 5. e4 {[%clk 0:03:00.9]} 5... Nbd7
{[%clk 0:02:52.5]} 6. g3 {[%clk 0:03:00.8]} 6... g6 {[%clk 0:02:52.2]} 7. Bg2
{[%clk 0:03:00.1]} 7... Bg7 {[%clk 0:02:52.7]} 8. Nf3 {[%clk 0:03:00.2]} 8...
O-O {[%clk 0:02:52.9]} 9. O-O {[%clk 0:03:00.9]} 9... a6 {[%clk 0:02:53.5]} 10.
a4 {[%clk 0:02:58.9]} 10... Ne8 {[%clk 0:02:40.9]} 11. Ne1 {[%clk 0:02:48.4]}
11... h6 {[%clk 0:02:03.7]} 12. Nd3 {[%clk 0:02:47.8]} 12... Rb8 {[%clk
0:01:54]} 13. Be3 {[%clk 0:02:34.8]} 13... Nc7 {[%clk 0:01:52.4]} 14. Qd2 {[%clk
0:02:34.6]} 14... Kh7 {[%clk 0:01:52.5]} 15. a5 {[%clk 0:02:25.7]} 15... b6
{[%clk 0:01:48.3]} 16. axb6 {[%clk 0:02:26.1]} 16... Rxb6 {[%clk 0:01:49.2]} 17.
f4 {[%clk 0:02:23.4]} 17... exf4 {[%clk 0:01:48.7]} 18. gxf4 {[%clk 0:02:19.8]}
18... f5 {[%clk 0:01:40.2]} 19. e5 {[%clk 0:02:10.9]} 19... dxe5 {[%clk
0:01:37.1]} 20. Nxc5 {[%clk 0:01:52.1]} 20... exf4 {[%clk 0:01:35.4]} 21. Rxf4
{[%clk 0:01:20.4]} 21... Ne5 {[%clk 0:01:24.7]} 22. Rd1 {[%clk 0:00:55.9]} 22...
g5 {[%clk 0:01:15.9]} 23. Rd4 {[%clk 0:00:53.4]} 23... f4 {[%clk 0:01:10.4]} 24.
Bf2 {[%clk 0:00:52.9]} 24... f3 {[%clk 0:01:02.4]} 25. Bf1 {[%clk 0:00:52.7]}
25... Ng4 {[%clk 0:00:29.1]} 26. Rxg4 {[%clk 0:00:44.8]} 26... Bxg4 {[%clk
0:00:27.5]} 27. d6 {[%clk 0:00:45.5]} 27... Ne6 {[%clk 0:00:20.5]} 28. Nxe6
{[%clk 0:00:41.6]} 28... Bxe6 {[%clk 0:00:21.4]} 29. c5 {[%clk 0:00:38.5]} 29...
Rb4 {[%clk 0:00:19.1]} 30. c6 {[%clk 0:00:35.4]} 30... Rg4+ {[%clk 0:00:15.3]}
31. Kh1 {[%clk 0:00:35.7]} 31... Rg2 {[%clk 0:00:13.7]} 32. Bxg2 {[%clk
0:00:34.3]} 32... fxg2+ {[%clk 0:00:14.6]} 33. Kg1 {[%clk 0:00:34.9]} 33... Qf6
{[%clk 0:00:14.2]} 34. d7 {[%clk 0:00:28.8]} 34... Bg4 {[%clk 0:00:14.5]} 35.
d8=Q {[%clk 0:00:20.4]} 35... Rxd8 {[%clk 0:00:14.4]} 36. Qxd8 {[%clk
0:00:21.3]} 36... Bxd1 {[%clk 0:00:14.4]} 37. Qxf6 {[%clk 0:00:21.2]} 37... Bxf6
{[%clk 0:00:14.7]} 38. Nxd1 {[%clk 0:00:21.6]} 1-0